[Event "*** Titled Tuesday 3|2 Blitz"]
[Site "Chess.com"]
[Date "2015.08.04"]
[Round "3"]
[White "hellokostya"]
[Black "darkknight123456"]
[Result "0-1"]
[WhiteElo "2197"]
[BlackElo "2092"]
[TimeControl "180+2"]
[EndTime "12:06:35 PDT"]
[Termination "darkknight123456 won by resignation"]

1. d4 {[%clk 0:03:01.9]} 1... Nf6 {[%clk 0:03:00.4]} 2. c4 {[%clk 0:03:02.4]}
2... c5 {[%clk 0:03:00.8]} 3. d5 {[%clk 0:03:03.1]} 3... e6 {[%clk 0:03:01.4]}
4. Nc3 {[%clk 0:03:02.8]} 4... exd5 {[%clk 0:03:02.2]} 5. cxd5 {[%clk
0:03:04.7]} 5... g6 {[%clk 0:03:03.1]} 6. e4 {[%clk 0:03:05.4]} 6... d6 {[%clk
0:03:03.9]} 7. f4 {[%clk 0:03:06.2]} 7... Bg7 {[%clk 0:03:04.6]} 8. Bb5+ {[%clk
0:03:07.1]} 8... Nfd7 {[%clk 0:03:05.3]} 9. a4 {[%clk 0:03:07.5]} 9... Qh4+
{[%clk 0:03:03.3]} 10. g3 {[%clk 0:03:08]} 10... Qe7 {[%clk 0:03:04]} 11. Nf3
{[%clk 0:03:07.9]} 11... O-O {[%clk 0:03:04.4]} 12. O-O {[%clk 0:03:08]} 12...
Na6 {[%clk 0:02:42.2]} 13. e5 {[%clk 0:03:06.2]} 13... Nb4 {[%clk 0:01:58.4]}
14. Ne4 {[%clk 0:03:00]} 14... dxe5 {[%clk 0:01:25.2]} 15. d6 {[%clk 0:03:00.9]}
15... Qd8 {[%clk 0:00:46.2]} 16. Bxd7 {[%clk 0:02:58.6]} 16... Bxd7 {[%clk
0:00:46.1]} 17. Nxe5 {[%clk 0:02:55.4]} 17... Re8 {[%clk 0:00:37.9]} 18. Nxc5
{[%clk 0:02:31.1]} 18... Bxe5 {[%clk 0:00:30.6]} 19. fxe5 {[%clk 0:02:33]} 19...
Qb6 {[%clk 0:00:12.3]} 20. Qd4 {[%clk 0:02:05.4]} 20... Nc2 {[%clk 0:00:12.3]}
21. Qf2 {[%clk 0:02:04.4]} 21... Nxa1 {[%clk 0:00:12.5]} 22. Nxd7 {[%clk
0:02:00.3]} 22... Qxf2+ {[%clk 0:00:12.9]} 23. Rxf2 {[%clk 0:02:00.3]} 23...
Rec8 {[%clk 0:00:11]} 24. Nf6+ {[%clk 0:01:57.8]} 24... Kg7 {[%clk 0:00:11.3]}
25. d7 {[%clk 0:01:55.7]} 25... Rxc1+ {[%clk 0:00:09.8]} 26. Kg2 {[%clk
0:01:56.9]} 26... Rd8 {[%clk 0:00:10.7]} 27. Rd2 {[%clk 0:01:55.6]} 27... Nb3
{[%clk 0:00:11.5]} 28. Rd5 {[%clk 0:01:49]} 28... Nc5 {[%clk 0:00:12.4]} 29. a5
{[%clk 0:01:44]} 29... a6 {[%clk 0:00:11]} 30. b4 {[%clk 0:01:38.8]} 30... Nxd7
{[%clk 0:00:11]} 31. Nxd7 {[%clk 0:01:38.9]} 31... Rc7 {[%clk 0:00:09.5]} 32.
Nb6 {[%clk 0:01:38.9]} 32... Rxd5 {[%clk 0:00:10.1]} 33. Nxd5 {[%clk 0:01:40.8]}
33... Rd7 {[%clk 0:00:10.6]} 34. Nf6 {[%clk 0:01:36.3]} 34... Rd4 {[%clk
0:00:11.5]} 35. Ne8+ {[%clk 0:01:33]} 35... Kf8 {[%clk 0:00:11.2]} 36. Nd6
{[%clk 0:01:34.9]} 36... Rxb4 {[%clk 0:00:11.9]} 37. Kf3 {[%clk 0:01:36.8]}
37... b6 {[%clk 0:00:12.1]} 38. axb6 {[%clk 0:01:29.3]} 38... Rxb6 {[%clk
0:00:12.9]} 39. Ke4 {[%clk 0:01:31]} 39... a5 {[%clk 0:00:13.6]} 40. Nc4 {[%clk
0:01:31.9]} 40... Rb5 {[%clk 0:00:14.3]} 41. Kd4 {[%clk 0:01:31.9]} 41... a4
{[%clk 0:00:14.6]} 42. h4 {[%clk 0:01:31.3]} 42... Rb3 {[%clk 0:00:14.6]} 43.
Nd2 {[%clk 0:01:31.2]} 43... Rxg3 {[%clk 0:00:14.4]} 0-1

[Event "*** Titled Tuesday 3|2 Blitz"]
[Site "Chess.com"]
[Date "2015.08.04"]
[Round "3"]
[White "geeeeri"]
[Black "BjarkeSahl"]
[Result "1-0"]
[WhiteElo "2200"]
[BlackElo "2120"]
[TimeControl "180+2"]
[EndTime "12:06:37 PDT"]
[Termination "geeeeri won by resignation"]

1. e4 {[%clk 0:03:01.9]} 1... c5 {[%clk 0:02:59.9]} 2. Nf3 {[%clk 0:03:01.8]}
2... d6 {[%clk 0:02:59.6]} 3. b3 {[%clk 0:02:59]} 3... Nf6 {[%clk 0:02:56.9]} 4.
d3 {[%clk 0:02:57.4]} 4... e5 {[%clk 0:02:52.9]} 5. Nbd2 {[%clk 0:02:56.6]} 5...
Be7 {[%clk 0:02:53.3]} 6. g3 {[%clk 0:02:57.6]} 6... Nbd7 {[%clk 0:02:54.9]} 7.
Bg2 {[%clk 0:02:59.5]} 7... Nf8 {[%clk 0:02:56.5]} 8. Bb2 {[%clk 0:03:01.4]}
8... Ng6 {[%clk 0:02:48.6]} 9. O-O {[%clk 0:03:03.3]} 9... h5 {[%clk 0:02:49.6]}
10. h4 {[%clk 0:03:02.1]} 10... Ng4 {[%clk 0:02:44.9]} 11. Nc4 {[%clk
0:03:00.7]} 11... Be6 {[%clk 0:02:39.6]} 12. Ne3 {[%clk 0:02:59.8]} 12... Nxe3
{[%clk 0:02:37.8]} 13. fxe3 {[%clk 0:03:01.7]} 13... Bg4 {[%clk 0:02:35.7]} 14.
Qd2 {[%clk 0:02:59.1]} 14... f6 {[%clk 0:02:29.7]} 15. d4 {[%clk 0:02:58.6]}
15... Qc7 {[%clk 0:02:15.1]} 16. Nh2 {[%clk 0:02:58.9]} 16... Be6 {[%clk
0:02:13.9]} 17. d5 {[%clk 0:02:55.7]} 17... Bd7 {[%clk 0:02:01.9]} 18. c4 {[%clk
0:02:57.6]} 18... Nf8 {[%clk 0:02:03]} 19. Qe2 {[%clk 0:02:56.5]} 19... g6
{[%clk 0:02:03.1]} 20. Rf2 {[%clk 0:02:46.6]} 20... Nh7 {[%clk 0:02:03.5]} 21.
Raf1 {[%clk 0:02:47.8]} 21... O-O-O {[%clk 0:02:05.1]} 22. a3 {[%clk 0:02:46.4]}
22... Kb8 {[%clk 0:02:04.5]} 23. b4 {[%clk 0:02:47.1]} 23... Rc8 {[%clk
0:02:03]} 24. b5 {[%clk 0:02:44.1]} 24... Rcf8 {[%clk 0:01:57.9]} 25. a4 {[%clk
0:02:40.4]} 25... Qc8 {[%clk 0:01:49.9]} 26. a5 {[%clk 0:02:37.6]} 26... g5
{[%clk 0:01:51.2]} 27. Qxh5 {[%clk 0:02:36.1]} 27... gxh4 {[%clk 0:01:49.1]} 28.
gxh4 {[%clk 0:02:22.2]} 28... Ng5 {[%clk 0:01:49.3]} 29. Qxh8 {[%clk 0:02:22.6]}
29... Rxh8 {[%clk 0:01:34.9]} 30. hxg5 {[%clk 0:02:24.5]} 30... fxg5 {[%clk
0:01:36.5]} 31. Rf7 {[%clk 0:02:24.7]} 31... Qd8 {[%clk 0:01:26.8]} 32. Nf3
{[%clk 0:02:05.4]} 32... Rg8 {[%clk 0:01:00]} 33. Nxe5 {[%clk 0:02:04]} 33...
dxe5 {[%clk 0:00:59.2]} 34. Bxe5+ {[%clk 0:02:05.9]} 34... Ka8 {[%clk
0:01:00.5]} 35. a6 {[%clk 0:01:57.8]} 35... bxa6 {[%clk 0:00:49.3]} 36. Bg3
{[%clk 0:01:37.5]} 36... g4 {[%clk 0:00:43.3]} 37. e5 {[%clk 0:01:37.3]} 37...
Bg5 {[%clk 0:00:44.8]} 38. d6+ {[%clk 0:01:31.1]} 38... Kb8 {[%clk 0:00:45.7]}
39. bxa6 {[%clk 0:01:11.9]} 39... Bxe3+ {[%clk 0:00:44.6]} 40. Bf2 {[%clk
0:01:11.9]} 40... Bxf2+ {[%clk 0:00:28.1]} 41. R1xf2 {[%clk 0:01:13.8]} 41...
Qb6 {[%clk 0:00:29.6]} 42. Rxd7 {[%clk 0:01:09.4]} 42... Qb1+ {[%clk 0:00:28.8]}
43. Rf1 {[%clk 0:01:06.9]} 1-0

[Event "*** Titled Tuesday 3|2 Blitz"]
[Site "Chess.com"]
[Date "2015.08.04"]
[Round "3"]
[White "fpawn"]
[Black "CraiggoryC"]
[Result "1-0"]
[WhiteElo "2107"]
[BlackElo "2010"]
[TimeControl "180+2"]
[EndTime "12:07:09 PDT"]
[Termination "fpawn won by resignation"]

1. e4 {[%clk 0:03:01.9]} 1... e6 {[%clk 0:03:00.6]} 2. d4 {[%clk 0:03:01.5]}
2... d5 {[%clk 0:03:01.7]} 3. Nc3 {[%clk 0:03:02.5]} 3... Nf6 {[%clk 0:03:00.4]}
4. Bg5 {[%clk 0:03:02.5]} 4... dxe4 {[%clk 0:02:58.9]} 5. Nxe4 {[%clk
0:03:01.3]} 5... Be7 {[%clk 0:03:00.3]} 6. Bxf6 {[%clk 0:03:01.7]} 6... Bxf6
{[%clk 0:03:02.2]} 7. Nf3 {[%clk 0:03:02.5]} 7... Nd7 {[%clk 0:03:03.3]} 8. Bd3
{[%clk 0:02:58]} 8... c5 {[%clk 0:03:03.2]} 9. c3 {[%clk 0:02:28.9]} 9... cxd4
{[%clk 0:02:59.1]} 10. Nxf6+ {[%clk 0:02:29.5]} 10... Nxf6 {[%clk 0:02:57.3]}
11. Bb5+ {[%clk 0:02:27.9]} 11... Bd7 {[%clk 0:02:57.6]} 12. Bxd7+ {[%clk
0:02:24.9]} 12... Qxd7 {[%clk 0:02:58.4]} 13. Qxd4 {[%clk 0:02:25.9]} 13... Qxd4
{[%clk 0:02:53.6]} 14. Nxd4 {[%clk 0:02:09.5]} 14... O-O-O {[%clk 0:02:45.8]}
15. f3 {[%clk 0:02:09.2]} 15... Rd7 {[%clk 0:02:38.4]} 16. O-O-O {[%clk
0:02:09]} 16... Rhd8 {[%clk 0:02:36.8]} 17. Nb5 {[%clk 0:02:08.3]} 17... Rxd1+
{[%clk 0:02:22.4]} 18. Rxd1 {[%clk 0:02:10.2]} 18... Rxd1+ {[%clk 0:02:23.2]}
19. Kxd1 {[%clk 0:02:12]} 19... Nd5 {[%clk 0:02:01.4]} 20. Kd2 {[%clk
0:01:53.5]} 20... Kd7 {[%clk 0:01:32.5]} 21. Nxa7 {[%clk 0:01:49.5]} 21... Nb6
{[%clk 0:01:15.6]} 22. b3 {[%clk 0:01:46.1]} 22... Kd6 {[%clk 0:01:11.2]} 23.
Nb5+ {[%clk 0:01:45.3]} 23... Ke5 {[%clk 0:01:11.7]} 24. g3 {[%clk 0:01:39.2]}
24... g5 {[%clk 0:01:04.7]} 25. Na3 {[%clk 0:01:36.2]} 25... f5 {[%clk
0:00:51.9]} 26. Kd3 {[%clk 0:01:25]} 26... Kd5 {[%clk 0:00:48.2]} 27. Nc2 {[%clk
0:01:17.7]} 27... f4 {[%clk 0:00:35.5]} 28. gxf4 {[%clk 0:01:16.4]} 28... gxf4
{[%clk 0:00:36.1]} 29. c4+ {[%clk 0:01:13.6]} 29... Ke5 {[%clk 0:00:36.2]} 30.
Nd4 {[%clk 0:01:07.3]} 30... Nd7 {[%clk 0:00:31.9]} 31. b4 {[%clk 0:01:06.6]}
31... Nf8 {[%clk 0:00:29.3]} 32. a4 {[%clk 0:01:06.3]} 32... Ng6 {[%clk
0:00:18.1]} 33. a5 {[%clk 0:01:05.7]} 33... Ne7 {[%clk 0:00:18.9]} 34. b5 {[%clk
0:01:03.8]} 34... Kd6 {[%clk 0:00:15.7]} 35. Nb3 {[%clk 0:01:01.9]} 35... Nf5
{[%clk 0:00:11.3]} 36. Ke4 {[%clk 0:00:59.7]} 36... Ne3 {[%clk 0:00:12.4]} 37.
c5+ {[%clk 0:00:55.8]} 37... Kc7 {[%clk 0:00:12.1]} 38. Nd4 {[%clk 0:00:52.7]}
38... Nc4 {[%clk 0:00:09.5]} 39. a6 {[%clk 0:00:43.8]} 39... bxa6 {[%clk
0:00:09.7]} 40. bxa6 {[%clk 0:00:44.8]} 40... e5 {[%clk 0:00:08.2]} 41. Nb5+
{[%clk 0:00:38.3]} 41... Kc6 {[%clk 0:00:08]} 42. a7 {[%clk 0:00:35.8]} 42...
Kb7 {[%clk 0:00:09]} 43. Nd6+ {[%clk 0:00:36.8]} 43... Nxd6+ {[%clk 0:00:04.9]}
44. cxd6 {[%clk 0:00:37.8]} 44... Kxa7 {[%clk 0:00:06.4]} 45. d7 {[%clk
0:00:36.5]} 1-0

[Event "*** Titled Tuesday 3|2 Blitz"]
[Site "Chess.com"]
[Date "2015.08.04"]
[Round "3"]
[White "ChadaevNikolay"]
[Black "Tesla37"]
[Result "0-1"]
[WhiteElo "2623"]
[BlackElo "2529"]
[TimeControl "180+2"]
[EndTime "12:07:10 PDT"]
[Termination "Tesla37 won by resignation"]

1. e4 {[%clk 0:03:01.9]} 1... c5 {[%clk 0:03:00.3]} 2. Nf3 {[%clk 0:03:02.3]}
2... e6 {[%clk 0:03:01.5]} 3. d4 {[%clk 0:03:03.2]} 3... cxd4 {[%clk 0:03:02.2]}
4. Nxd4 {[%clk 0:03:04.8]} 4... Nc6 {[%clk 0:03:03.9]} 5. Nc3 {[%clk 0:03:05.7]}
5... Qc7 {[%clk 0:03:04.8]} 6. Be2 {[%clk 0:03:04.6]} 6... a6 {[%clk 0:03:05.9]}
7. O-O {[%clk 0:03:05]} 7... Nf6 {[%clk 0:03:07]} 8. Be3 {[%clk 0:03:06]} 8...
Be7 {[%clk 0:03:06.3]} 9. f4 {[%clk 0:03:06.7]} 9... d6 {[%clk 0:03:07.8]} 10.
Kh1 {[%clk 0:03:07.3]} 10... O-O {[%clk 0:03:08.4]} 11. Qe1 {[%clk 0:03:07.9]}
11... Nxd4 {[%clk 0:03:04.8]} 12. Bxd4 {[%clk 0:03:08.8]} 12... b5 {[%clk
0:03:06.4]} 13. a3 {[%clk 0:03:06.6]} 13... Bb7 {[%clk 0:03:07.3]} 14. Qg3
{[%clk 0:03:06.5]} 14... Bc6 {[%clk 0:03:07.5]} 15. Rad1 {[%clk 0:03:02.2]}
15... Qb7 {[%clk 0:03:06.1]} 16. Bf3 {[%clk 0:03:02.9]} 16... Rad8 {[%clk
0:02:57.7]} 17. Rfe1 {[%clk 0:03:03.3]} 17... g6 {[%clk 0:02:55.4]} 18. h4
{[%clk 0:02:39.5]} 18... d5 {[%clk 0:02:37.3]} 19. e5 {[%clk 0:01:58.4]} 19...
Ne4 {[%clk 0:02:34.7]} 20. Nxe4 {[%clk 0:01:55.1]} 20... dxe4 {[%clk 0:02:35.5]}
21. Be2 {[%clk 0:01:55.3]} 21... a5 {[%clk 0:02:09.3]} 22. h5 {[%clk 0:01:50.2]}
22... b4 {[%clk 0:02:09.1]} 23. axb4 {[%clk 0:01:49.6]} 23... axb4 {[%clk
0:02:09.5]} 24. Bg4 {[%clk 0:01:43.5]} 24... e3 {[%clk 0:01:20.7]} 25. hxg6
{[%clk 0:01:18.5]} 25... hxg6 {[%clk 0:01:20.9]} 26. f5 {[%clk 0:01:19.2]} 26...
exf5 {[%clk 0:01:19.8]} 27. Bxf5 {[%clk 0:01:19.6]} 27... Be4 {[%clk 0:01:17.4]}
28. Bxe4 {[%clk 0:01:01.4]} 28... Qxe4 {[%clk 0:01:17.8]} 29. Qxe3 {[%clk
0:00:59.4]} 29... Qxc2 {[%clk 0:00:59.4]} 30. e6 {[%clk 0:01:00.4]} 30... Rd5
{[%clk 0:00:59.3]} 31. Rd2 {[%clk 0:00:48.7]} 31... Rh5+ {[%clk 0:00:46.6]} 32.
Kg1 {[%clk 0:00:48.8]} 32... Qc7 {[%clk 0:00:48.1]} 33. Be5 {[%clk 0:00:40.5]}
33... Qc6 {[%clk 0:00:30]} 34. exf7+ {[%clk 0:00:36.8]} 34... Rxf7 {[%clk
0:00:31.1]} 35. Bd4 {[%clk 0:00:26]} 35... Qd6 {[%clk 0:00:25.9]} 36. g3 {[%clk
0:00:21.1]} 36... Bg5 {[%clk 0:00:18.2]} 37. Qe8+ {[%clk 0:00:20.4]} 37... Rf8
{[%clk 0:00:19.5]} 38. Rf2 {[%clk 0:00:20.2]} 38... Qxg3+ {[%clk 0:00:19.2]} 39.
Kf1 {[%clk 0:00:20.2]} 39... Rh1+ {[%clk 0:00:20]} 0-1

[Event "*** Titled Tuesday 3|2 Blitz"]
[Site "Chess.com"]
[Date "2015.08.04"]
[Round "3"]
[White "josiwales"]
[Black "michaelk123"]
[Result "1/2-1/2"]
[WhiteElo "2060"]
[BlackElo "2011"]
[TimeControl "180+2"]
[EndTime "12:07:12 PDT"]
[Termination "Game drawn by agreement"]

1. e4 {[%clk 0:02:32.8]} 1... c5 {[%clk 0:03:00.3]} 2. Nc3 {[%clk 0:02:33.1]}
2... e6 {[%clk 0:03:01.5]} 3. g3 {[%clk 0:02:34.5]} 3... d5 {[%clk 0:03:02.2]}
4. exd5 {[%clk 0:02:29.6]} 4... exd5 {[%clk 0:03:04.1]} 5. Bg2 {[%clk
0:02:30.5]} 5... Nf6 {[%clk 0:03:05]} 6. d3 {[%clk 0:02:31]} 6... h6 {[%clk
0:03:01.7]} 7. Nge2 {[%clk 0:02:28.7]} 7... Nc6 {[%clk 0:03:02.5]} 8. O-O {[%clk
0:02:28.9]} 8... Be7 {[%clk 0:03:03.8]} 9. Nf4 {[%clk 0:02:29.5]} 9... d4 {[%clk
0:02:58.8]} 10. Ne4 {[%clk 0:02:28.2]} 10... O-O {[%clk 0:02:57.5]} 11. Re1
{[%clk 0:02:25.5]} 11... Bg4 {[%clk 0:02:45.6]} 12. f3 {[%clk 0:02:22.9]} 12...
Bf5 {[%clk 0:02:42.5]} 13. g4 {[%clk 0:02:23.2]} 13... Bh7 {[%clk 0:02:39.4]}
14. Nxf6+ {[%clk 0:02:19.4]} 14... Bxf6 {[%clk 0:02:40.5]} 15. Nh5 {[%clk
0:02:16.1]} 15... Bh4 {[%clk 0:02:35.9]} 16. Re2 {[%clk 0:02:15.2]} 16... Re8
{[%clk 0:02:36]} 17. Bf4 {[%clk 0:02:14.9]} 17... Qd7 {[%clk 0:02:25.5]} 18. Bg3
{[%clk 0:02:07.5]} 18... Rxe2 {[%clk 0:02:18.1]} 19. Qxe2 {[%clk 0:02:06.6]}
19... Re8 {[%clk 0:02:19.7]} 20. Qd2 {[%clk 0:02:04.3]} 20... Bxg3 {[%clk
0:02:15.4]} 21. Nxg3 {[%clk 0:01:57.5]} 21... Re3 {[%clk 0:02:15.1]} 22. Re1
{[%clk 0:01:56.2]} 22... Qe6 {[%clk 0:02:10.8]} 23. Ne4 {[%clk 0:01:44.7]} 23...
Rxe1+ {[%clk 0:01:57.3]} 24. Qxe1 {[%clk 0:01:39.5]} 24... b6 {[%clk 0:01:48.3]}
25. a3 {[%clk 0:01:35.3]} 25... Ne7 {[%clk 0:01:45.6]} 26. Qg3 {[%clk
0:01:31.2]} 26... Bxe4 {[%clk 0:01:19.3]} 27. fxe4 {[%clk 0:01:29]} 27... Kh7
{[%clk 0:01:05.4]} 28. Qc7 {[%clk 0:01:24.8]} 28... Ng6 {[%clk 0:00:54.8]} 29.
h3 {[%clk 0:01:21.9]} 29... Qe5 {[%clk 0:00:47.9]} 30. Qxf7 {[%clk 0:01:16]}
30... Qg3 {[%clk 0:00:40.1]} 31. Qf2 {[%clk 0:01:12.2]} 31... Qxf2+ {[%clk
0:00:29.3]} 32. Kxf2 {[%clk 0:01:13.1]} 32... Ne5 {[%clk 0:00:31.2]} 33. Kg3
{[%clk 0:01:09.5]} 33... g5 {[%clk 0:00:31.9]} 34. b3 {[%clk 0:01:09.1]} 34...
a5 {[%clk 0:00:27.7]} 35. Kf2 {[%clk 0:01:09.7]} 35... b5 {[%clk 0:00:23.9]} 36.
Bf3 {[%clk 0:01:08.5]} 36... Kg6 {[%clk 0:00:20]} 37. Be2 {[%clk 0:01:07.9]}
37... Kf6 {[%clk 0:00:18.7]} 38. Ke1 {[%clk 0:01:08.6]} 38... b4 {[%clk
0:00:08.6]} 39. a4 {[%clk 0:01:07.7]} 39... Ng6 {[%clk 0:00:09.1]} 40. Kf2
{[%clk 0:01:03.2]} 40... Ke5 {[%clk 0:00:08.4]} 41. Kg3 {[%clk 0:01:00]} 41...
Nf4 {[%clk 0:00:08.9]} 42. Bf1 {[%clk 0:01:00.8]} 42... Ne6 {[%clk 0:00:06]} 43.
h4 {[%clk 0:01:00.5]} 43... Nf4 {[%clk 0:00:07.3]} 44. h5 {[%clk 0:00:58.5]}
44... Ne6 {[%clk 0:00:08.3]} 45. Kf3 {[%clk 0:00:59.3]} 45... Nf4 {[%clk
0:00:10.2]} 46. Kg3 {[%clk 0:00:59.4]} 46... Ne6 {[%clk 0:00:11.7]} 47. Kf3
{[%clk 0:00:54.5]} 1/2-1/2

[Event "*** Titled Tuesday 3|2 Blitz"]
[Site "Chess.com"]
[Date "2015.08.04"]
[Round "3"]
[White "Cryptochess"]
[Black "hansen"]
[Result "0-1"]
[WhiteElo "2351"]
[BlackElo "2479"]
[TimeControl "180+2"]
[EndTime "12:07:35 PDT"]
[Termination "hansen won by resignation"]

1. e4 {[%clk 0:02:57.8]} 1... c5 {[%clk 0:03:00.9]} 2. Nc3 {[%clk 0:02:58]} 2...
e6 {[%clk 0:03:00.7]} 3. g3 {[%clk 0:02:52.2]} 3... Nc6 {[%clk 0:02:58.4]} 4.
Bg2 {[%clk 0:02:52.8]} 4... g6 {[%clk 0:02:54.2]} 5. d3 {[%clk 0:02:53.9]} 5...
Bg7 {[%clk 0:02:55.3]} 6. Be3 {[%clk 0:02:55.4]} 6... Nd4 {[%clk 0:02:49.8]} 7.
Nce2 {[%clk 0:02:55.4]} 7... d6 {[%clk 0:02:42.4]} 8. c3 {[%clk 0:02:51]} 8...
Nxe2 {[%clk 0:02:40.9]} 9. Nxe2 {[%clk 0:02:52.9]} 9... Nf6 {[%clk 0:02:33.8]}
10. h3 {[%clk 0:02:49.8]} 10... O-O {[%clk 0:02:31.3]} 11. O-O {[%clk 0:02:48]}
11... e5 {[%clk 0:02:20.4]} 12. Qd2 {[%clk 0:02:47.6]} 12... Re8 {[%clk
0:02:21.8]} 13. f4 {[%clk 0:02:48]} 13... exf4 {[%clk 0:02:16.8]} 14. Nxf4
{[%clk 0:02:43.2]} 14... c4 {[%clk 0:01:58.5]} 15. Nd5 {[%clk 0:01:54.3]} 15...
Nxd5 {[%clk 0:01:56.1]} 16. exd5 {[%clk 0:01:56.2]} 16... cxd3 {[%clk
0:01:57.3]} 17. Qxd3 {[%clk 0:01:56.1]} 17... Bf5 {[%clk 0:01:58]} 18. Qd2
{[%clk 0:01:53.7]} 18... Qd7 {[%clk 0:01:57.1]} 19. Kh2 {[%clk 0:01:33.6]} 19...
Be4 {[%clk 0:01:46.2]} 20. Rae1 {[%clk 0:01:31.1]} 20... Bxg2 {[%clk 0:01:46.5]}
21. Kxg2 {[%clk 0:01:30.1]} 21... Qa4 {[%clk 0:01:15.5]} 22. Bf4 {[%clk
0:00:53.9]} 22... Qxa2 {[%clk 0:01:05.2]} 23. h4 {[%clk 0:00:11.7]} 23... h5
{[%clk 0:00:58.3]} 24. Kh3 {[%clk 0:00:08.4]} 24... Qc4 {[%clk 0:00:53.4]} 25.
Bxd6 {[%clk 0:00:06.5]} 25... Rxe1 {[%clk 0:00:48.8]} 26. Rxe1 {[%clk
0:00:08.4]} 26... Rd8 {[%clk 0:00:49.9]} 27. Be7 {[%clk 0:00:06.6]} 27... Rxd5
{[%clk 0:00:49.5]} 28. Qf2 {[%clk 0:00:05.3]} 28... Qg4+ {[%clk 0:00:29.7]} 29.
Kh2 {[%clk 0:00:04.8]} 29... a5 {[%clk 0:00:21.5]} 30. Bg5 {[%clk 0:00:05]}
30... Rf5 {[%clk 0:00:19.4]} 31. Qb6 {[%clk 0:00:04.1]} 31... Be5 {[%clk
0:00:17]} 32. Qe3 {[%clk 0:00:03.5]} 32... Kh7 {[%clk 0:00:14.3]} 33. Rg1 {[%clk
0:00:02.6]} 33... f6 {[%clk 0:00:14.6]} 34. Bxf6 {[%clk 0:00:03.4]} 34... Bxf6
{[%clk 0:00:15.1]} 35. Rg2 {[%clk 0:00:04.7]} 35... Be5 {[%clk 0:00:15.5]} 36.
Qb6 {[%clk 0:00:05.5]} 36... Qxh4+ {[%clk 0:00:15]} 37. Kg1 {[%clk 0:00:07]}
37... Qe7 {[%clk 0:00:13.6]} 38. Qe3 {[%clk 0:00:06.9]} 38... Qg7 {[%clk
0:00:12.9]} 39. Qd3 {[%clk 0:00:07.6]} 39... Bc7 {[%clk 0:00:13]} 40. g4 {[%clk
0:00:08.9]} 40... Bb6+ {[%clk 0:00:13.8]} 41. Kh2 {[%clk 0:00:09.7]} 41... Qe5+
{[%clk 0:00:14.9]} 42. Kh3 {[%clk 0:00:11.1]} 42... hxg4+ {[%clk 0:00:16.3]} 43.
Rxg4 {[%clk 0:00:10.7]} 43... Rh5+ {[%clk 0:00:17.5]} 44. Kg2 {[%clk 0:00:12]}
44... Qh2+ {[%clk 0:00:17]} 45. Kf3 {[%clk 0:00:12.6]} 45... Rh3+ {[%clk
0:00:18.4]} 0-1

[Event "*** Titled Tuesday 3|2 Blitz"]
[Site "Chess.com"]
[Date "2015.08.04"]
[Round "3"]
[White "MITerryble"]
[Black "DeviatkinAndrey"]
[Result "0-1"]
[WhiteElo "2580"]
[BlackElo "2570"]
[TimeControl "180+2"]
[EndTime "12:07:49 PDT"]
[Termination "DeviatkinAndrey won on time"]

1. d4 {[%clk 0:03:01.9]} 1... d5 {[%clk 0:03:00.1]} 2. Nf3 {[%clk 0:03:03]} 2...
Nf6 {[%clk 0:02:58.8]} 3. c4 {[%clk 0:03:04]} 3... dxc4 {[%clk 0:02:59.9]} 4. e3
{[%clk 0:03:04.6]} 4... Bg4 {[%clk 0:03:01.1]} 5. Bxc4 {[%clk 0:03:04.5]} 5...
e6 {[%clk 0:03:02.4]} 6. h3 {[%clk 0:03:04.4]} 6... Bh5 {[%clk 0:03:02.4]} 7.
Nc3 {[%clk 0:03:04.9]} 7... c6 {[%clk 0:02:57.3]} 8. Qb3 {[%clk 0:02:57.4]} 8...
Bxf3 {[%clk 0:02:52.5]} 9. gxf3 {[%clk 0:02:56.2]} 9... Qb6 {[%clk 0:02:44.9]}
10. Bd2 {[%clk 0:02:55]} 10... Nbd7 {[%clk 0:02:45]} 11. Rc1 {[%clk 0:02:54.8]}
11... Qxb3 {[%clk 0:02:43.7]} 12. Bxb3 {[%clk 0:02:55.1]} 12... Be7 {[%clk
0:02:08.7]} 13. Ne4 {[%clk 0:02:43.8]} 13... O-O {[%clk 0:02:05]} 14. Rg1 {[%clk
0:02:41.7]} 14... Rfd8 {[%clk 0:01:57.1]} 15. Ke2 {[%clk 0:02:39.1]} 15... Rac8
{[%clk 0:01:54.6]} 16. Ba5 {[%clk 0:02:37.5]} 16... Re8 {[%clk 0:01:54.4]} 17.
a3 {[%clk 0:02:13.9]} 17... Nd5 {[%clk 0:01:27.8]} 18. Bd2 {[%clk 0:02:04.3]}
18... Red8 {[%clk 0:01:24.3]} 19. Ba5 {[%clk 0:02:04.4]} 19... Re8 {[%clk
0:01:24.7]} 20. f4 {[%clk 0:01:53.5]} 20... g6 {[%clk 0:01:20.5]} 21. Bd2 {[%clk
0:01:25.9]} 21... Red8 {[%clk 0:01:19.1]} 22. Ba5 {[%clk 0:01:26.1]} 22... Re8
{[%clk 0:01:19.7]} 23. Rc2 {[%clk 0:01:23.3]} 23... N5f6 {[%clk 0:01:14.3]} 24.
Ng5 {[%clk 0:01:20.1]} 24... Nd5 {[%clk 0:01:11.8]} 25. Nf3 {[%clk 0:01:16.8]}
25... Bd8 {[%clk 0:00:57.7]} 26. Bd2 {[%clk 0:01:16.6]} 26... Bc7 {[%clk
0:00:55.7]} 27. f5 {[%clk 0:01:06]} 27... N7f6 {[%clk 0:00:41.5]} 28. fxg6
{[%clk 0:00:43.6]} 28... hxg6 {[%clk 0:00:41.4]} 29. Ng5 {[%clk 0:00:44.8]}
29... Rcd8 {[%clk 0:00:33]} 30. f4 {[%clk 0:00:43.8]} 30... Kg7 {[%clk
0:00:30.8]} 31. Kf3 {[%clk 0:00:44.1]} 31... Ne7 {[%clk 0:00:23.4]} 32. Bxe6
{[%clk 0:00:23.8]} 32... fxe6 {[%clk 0:00:24.1]} 33. Nxe6+ {[%clk 0:00:22.9]}
33... Kf7 {[%clk 0:00:25.7]} 34. Nxd8+ {[%clk 0:00:16.1]} 34... Rxd8 {[%clk
0:00:21.6]} 35. Bc1 {[%clk 0:00:15.5]} 35... Nf5 {[%clk 0:00:22.4]} 36. Re2
{[%clk 0:00:11.6]} 36... Rh8 {[%clk 0:00:20.7]} 37. Rh1 {[%clk 0:00:10.8]} 37...
Nh4+ {[%clk 0:00:20.9]} 38. Kf2 {[%clk 0:00:09.3]} 38... Ne4+ {[%clk 0:00:22]}
39. Ke1 {[%clk 0:00:07.9]} 39... Ng3 {[%clk 0:00:23.4]} 40. Rhh2 {[%clk
0:00:07.8]} 40... Nxe2 {[%clk 0:00:22.2]} 41. Kxe2 {[%clk 0:00:04]} 41... g5
{[%clk 0:00:23.2]} 0-1